fUSD/lending_fUSD_20250213
["ID","MTS","AMOUNT","RATE_DAILY","PERIOD"]
[353013541,1739485943141,-1693.27,0.00014931,2]
[353013542,1739485943150,-765.27,0.00014931,2]
[353013543,1739485943160,-1023.18,0.00014931,2]
[353013544,1739485943171,-1983.35,0.00014931,2]
[353013545,1739485943181,-1199.21,0.00014931,2]
[353013546,1739485943191,-1991.14,0.00014931,2]
[353013547,1739485943201,-533.09,0.00014931,2]
[353013548,1739485943211,-4281.75,0.00014931,2]
[353013549,1739485943221,-500.0,0.00014931,2]
[353013550,1739485943231,-2700.69,0.00014931,2]
[353013551,1739485943240,-1072.56,0.00014931,2]
[353013552,1739485943250,-2181.51,0.00014931,2]
[353013553,1739485943260,-2105.12,0.00014931,2]
[353013554,1739485943270,-2362.29,0.00014931,2]
[353013555,1739485943279,-797.65,0.00014931,2]
[353013556,1739485943289,-1372.43,0.00014931,2]
[353013557,1739485943299,-500.0,0.00014931,2]
[353013558,1739485943309,-2270.27,0.00014931,2]
[353013559,1739485943319,-701.26,0.00014931,2]
[353013560,1739485943328,-500.0,0.00014931,2]
[353013561,1739485943338,-1635.6,0.00014931,2]
[353013562,1739485943347,-1210.46,0.00014931,2]
[353013563,1739485943357,-1551.99,0.00014931,2]
[353013564,1739485943366,-4033.58,0.00014931,2]
[353013565,1739485943375,-2766.93,0.00014931,2]
[353013566,1739485943385,-2765.04,0.00014931,2]
[353013567,1739485943395,-660.75,0.00014931,2]
[353013568,1739485943404,-2103.7,0.00014931,2]
[353013569,1739485943414,-924.48,0.00014931,2]
[353013570,1739485943424,-794.33,0.00014931,2]
[353013571,1739485943435,-1140.21,0.00014931,2]
[353013572,1739485943446,-1374.92,0.00014931,2]
[353013573,1739485943455,-500.0,0.00014931,2]
[353013574,1739485943465,-1394.91,0.00014931,2]
[353013575,1739485943552,-2230.12,0.00014931,2]
[353013576,1739485943562,-500.0,0.00014931,2]
[353013577,1739485943572,-878.31,0.00014931,2]
[353013578,1739485943581,-1071.07,0.00014931,2]
[353013579,1739485943591,-3342.84,0.00014931,2]
[353013580,1739485943602,-1308.38,0.00014931,2]
[353013581,1739485943612,-683.58,0.00014931,2]
[353013582,1739485943621,-3531.08,0.00014931,2]
[353013583,1739485943631,-1653.81,0.00014931,2]
[353013584,1739485943641,-553.67,0.00014931,2]
[353013585,1739485943650,-988.77,0.00014931,2]
[353013586,1739485943659,-2226.29,0.00014931,2]
[353013587,1739485943668,-1807.21,0.00014931,2]
[353013588,1739485943678,-969.77,0.00014931,2]
[353013589,1739485943688,-500.0,0.00014931,2]
[353013590,1739485943698,-3314.33,0.00014931,2]
[353013591,1739485943707,-1796.12,0.00014931,2]
[353013592,1739485943716,-3189.0,0.00014931,2]
[353013593,1739485943726,-803.11,0.00014931,2]
[353013594,1739485943736,-607.85,0.00014931,2]
[353013595,1739485943745,-761.91,0.00014931,2]
[353013596,1739485943755,-621.21,0.00014931,2]
[353013597,1739485943765,-1972.85,0.00014931,2]
[353013598,1739485943775,-523.93,0.00014931,2]
[353013599,1739485943784,-3990.94,0.00014931,2]
[353013600,1739485943794,-719.42,0.00014931,2]
[353013601,1739485943804,-749.77,0.00014931,2]
[353013602,1739485943814,-153.40485373,0.00014931,2]
[353013603,1739485943823,-1753.67,0.00014931,2]
[353013604,1739485943836,-2497.17,0.00014931,2]
[353013605,1739485943845,-500.0,0.00014931,2]
[353013606,1739485943855,-1325.27,0.00014931,2]
[353013607,1739485943865,-3120.71,0.00014931,2]
[353013608,1739485943875,-511.69,0.00014931,2]
[353013609,1739485943885,-3912.39,0.00014931,2]
[353013610,1739485943895,-635.38,0.00014931,2]
[353013611,1739485943904,-1203.12,0.00014931,2]
[353013612,1739485943914,-500.0,0.00014931,2]
[353013613,1739485943924,-1628.89,0.00014931,2]
[353013614,1739485943935,-1174.26,0.00014931,2]
[353013615,1739485943945,-5014.48,0.00014931,2]
[353013616,1739485943955,-591.53,0.00014931,2]
[353013617,1739485943965,-2834.89,0.00014931,2]
[353013618,1739485943974,-1129.98,0.00014931,2]
[353013619,1739485943984,-4012.08,0.00014931,2]
[353013620,1739485943994,-1877.06,0.00014931,2]
[353013621,1739485944004,-2305.18,0.00014931,2]
[353013622,1739485944014,-3400.07,0.00014931,2]
[353013623,1739485944024,-1278.06,0.00014931,2]
[353013624,1739485944035,-2677.19,0.00014931,2]
[353013625,1739485944046,-2091.53,0.00014931,2]
[353013626,1739485944056,-10601.94,0.00014931,2]
[353013627,1739485944066,-6319.86,0.00014931,2]
[353013628,1739485944077,-1914.19,0.00014931,2]
[353013629,1739485944087,-2222.28,0.00014931,2]
[353013630,1739485944096,-1244.36,0.00014931,2]
[353013631,1739485944106,-2434.73,0.00014931,2]
[353013632,1739485944120,-1301.75,0.00014931,2]
[353013633,1739485944130,-3378.69,0.00014931,2]
[353013634,1739485944139,-1073.98,0.00014931,2]
[353013635,1739485944148,-500.0,0.00014931,2]
[353013636,1739485944157,-533.59,0.00014931,2]
[353013637,1739485944167,-1003.25,0.00014931,2]
[353013638,1739485944176,-1894.84,0.00014931,2]
[353013639,1739485944188,-3213.97,0.00014931,2]
[353013640,1739485944198,-1618.51,0.00014931,2]
[353013641,1739485944208,-3027.83,0.00014931,2]
[353013642,1739485944218,-1463.57,0.00014931,2]
[353013643,1739485944228,-551.57,0.00014931,2]
[353013644,1739485944238,-1866.04,0.00014931,2]
[353013645,1739485944247,-3405.09,0.00014931,2]
[353013646,1739485944257,-3794.0,0.00014931,2]
[353013647,1739485944267,-3558.25,0.00014931,2]
[353013648,1739485944276,-1199.38,0.00014931,2]
[353013649,1739485944286,-5141.78,0.00014931,2]
[353013650,1739485944296,-5036.58,0.00014931,2]
[353013651,1739485944306,-972.02,0.00014931,2]
[353013652,1739485944315,-1457.37,0.00014931,2]
[353013653,1739485944325,-1646.26,0.00014931,2]
[353013654,1739485944334,-1023.76,0.00014931,2]
[353013655,1739485944344,-4943.34,0.00014931,2]
[353013656,1739485944354,-973.76,0.00014931,2]
[353013657,1739485944363,-1078.92,0.00014931,2]
[353013658,1739485944373,-3488.7,0.00014931,2]
[353013659,1739485944382,-9947.08,0.00014931,2]
[353013660,1739485944392,-1167.35,0.00014931,2]
[353013661,1739485944401,-1925.44,0.00014931,2]
[353013662,1739485944411,-3871.01,0.00014931,2]
[353013663,1739485944420,-3374.31,0.00014931,2]
[353013664,1739485944430,-3262.34,0.00014931,2]
[353013665,1739485944440,-3751.7,0.00014931,2]
[353013666,1739485944450,-2216.47,0.00014931,2]
[353013667,1739485944459,-500.0,0.00014931,2]
[353013668,1739485944469,-500.0,0.00014931,2]
[353013669,1739485944478,-2198.57,0.00014931,2]
[353013670,1739485944488,-1272.94,0.00014931,2]
[353013671,1739485944498,-3047.23,0.00014931,2]
[353013672,1739485944507,-4282.13,0.00014931,2]
[353013673,1739485944516,-1579.29,0.00014931,2]
[353013674,1739485944526,-2262.09,0.00014931,2]
[353013675,1739485944535,-2034.1,0.00014931,2]
[353013676,1739485944544,-4796.16,0.00014931,2]
[353013677,1739485944553,-621.58,0.00014931,2]
[353013678,1739485944563,-4188.27,0.00014931,2]
[353013679,1739485944573,-2900.35,0.00014931,2]
[353013680,1739485944582,-5302.96,0.00014931,2]
[353013681,1739485944591,-3352.12,0.00014931,2]
[353013682,1739485944601,-525.01,0.00014931,2]
[353013683,1739485944611,-2517.29,0.00014931,2]
[353013684,1739485944620,-3510.5,0.00014931,2]
[353013685,1739485944629,-1911.76,0.00014931,2]
[353013686,1739485944639,-3186.25,0.00014931,2]
[353013687,1739485944648,-1411.53,0.00014931,2]
[353013688,1739485944658,-5245.34,0.00014931,2]
[353013689,1739485944668,-4040.71,0.00014931,2]
[353013690,1739485944677,-2434.4,0.00014931,2]
[353013691,1739485944687,-797.43,0.00014931,2]
[353013692,1739485944696,-3997.95,0.00014931,2]
[353013693,1739485944706,-3418.06,0.00014931,2]
[353013694,1739485944716,-3613.39,0.00014931,2]
[353013695,1739485944726,-566.64,0.00014931,2]
[353013696,1739485944735,-8838.73,0.00014931,2]
[353013697,1739485944744,-624.99,0.00014931,2]
[353013698,1739485944754,-720.74,0.00014931,2]
[353013699,1739485944763,-3533.94,0.00014931,2]
[353013700,1739485944773,-3776.32,0.00014931,2]
[353013701,1739485944782,-522.13,0.00014931,2]
[353013702,1739485944792,-4171.69,0.00014931,2]
[353013703,1739485944801,-2767.11,0.00014931,2]
[353013704,1739485944811,-500.0,0.00014931,2]
[353013705,1739485944820,-1300.63,0.00014931,2]
[353013706,1739485944830,-3523.18,0.00014931,2]
[353013707,1739485944839,-4629.45,0.00014931,2]
[353013708,1739485944848,-2317.93,0.00014931,2]
[353013709,1739485944857,-542.74,0.00014931,2]
[353013710,1739485944867,-6501.79,0.00014931,2]
[353013711,1739485944877,-649.96,0.00014931,2]
[353013712,1739485944887,-2852.77,0.00014931,2]
[353013713,1739485944896,-4468.57,0.00014931,2]
[353013714,1739485944905,-773.78,0.00014931,2]
[353013715,1739485944915,-724.47,0.00014931,2]
[353013716,1739485944926,-2513.38,0.00014931,2]
[353013717,1739485944937,-4071.43,0.00014931,2]
[353013718,1739485944946,-3113.41,0.00014931,2]
[353013719,1739485944956,-3680.29,0.00014931,2]
[353013720,1739485944966,-964.12,0.00014931,2]
[353013721,1739485944975,-500.0,0.00014931,2]
[353013722,1739485944985,-1523.71,0.00014931,2]
[353013723,1739485944994,-525.45,0.00014931,2]
[353013724,1739485945005,-741.53,0.00014931,2]
[353013725,1739485945014,-2768.98,0.00014931,2]
[353013726,1739485945024,-1470.77,0.00014931,2]
[353013727,1739485945037,-3441.38,0.00014931,2]
[353013728,1739485945047,-4132.51,0.00014931,2]
[353013729,1739485945057,-1712.88,0.00014931,2]
[353013730,1739485945066,-4938.55,0.00014931,2]
[353013731,1739485945076,-2124.68,0.00014931,2]
[353013732,1739485945086,-1789.26,0.00014931,2]
[353013733,1739485945095,-1226.02,0.00014931,2]
[353013734,1739485945105,-1451.96,0.00014931,2]
[353013735,1739485945115,-824.05,0.00014931,2]
[353013736,1739485945126,-3558.23,0.00014931,2]
[353013737,1739485945136,-4167.53,0.00014931,2]
[353013738,1739485945146,-880.79,0.00014931,2]
[353013739,1739485945155,-1838.56,0.00014931,2]
[353013740,1739485945165,-1936.97,0.00014931,2]
[353013741,1739485945175,-2962.2,0.00014931,2]
[353013742,1739485945186,-598.78,0.00014931,2]
[353013743,1739485945196,-151.62335706,0.00014944,2]
[353013744,1739485945205,-202.0,0.0001497,2]
[353013745,1739485945215,-171.409911,0.0001499,2]
[353013746,1739485945225,-173.821041,0.0001499,2]
[353013747,1739485945234,-5090.32781577,0.0001499,3]
[353013748,1739485945243,-500.0,0.0001499,2]
[353013749,1739485945253,-500.0,0.0001499,2]
[353013750,1739485945262,-500.0,0.0001499,2]
[353013751,1739485945272,-500.0,0.0001499,2]
[353013752,1739485945281,-500.0,0.0001499,2]
[353013753,1739485945290,-500.0,0.0001499,2]
[353013754,1739485945300,-500.0,0.0001499,2]
[353013755,1739485945309,-507.0,0.0001499,2]
[353013756,1739485945319,-1600.0,0.00014998,4]
[353013757,1739485945328,-38009.0766233,0.00015,4]
[353013758,1739485945338,-8245.46971082,0.00015,2]
[353013759,1739485945348,-357.65408908,0.00015,2]
[353013760,1739485945357,-9933.98091814,0.00015,2]
[353013761,1739485945367,-200.0,0.00015,2]
[353013762,1739485945376,-760.70817991,0.00015,2]
[353013763,1739485945386,-10544.79794478,0.00015,2]
[353013764,1739485945395,-250000.0,0.00015,20]
[353013765,1739485945405,-55642.53990625,0.00015,2]
[353013766,1739485945414,-137239.15935748,0.00015,2]
[353013767,1739485945423,-160414.05014155,0.00015,5]
[353013768,1739485945434,-2095.0,0.00015,2]
[353013769,1739485945443,-1884.0,0.00015,2]
[353013770,1739485945452,-785.55,0.00015,2]
[353013771,1739485945462,-600.0,0.00015,2]
[353013772,1739485945472,-299.0,0.00015,2]
[353013773,1739485945482,-3420.98,0.00015003,2]
[353013774,1739485945491,-169.872834,0.00015013,2]
[353013775,1739485945500,-1124.476697,0.00015013,2]
[353013776,1739485945510,-1030.770305,0.00015013,2]
[353013777,1739485945519,-1369.077968,0.00015013,2]
[353013778,1739485945528,-169.872827,0.00015013,2]
[353013779,1739485945538,-183.038697,0.00015013,2]
[353013780,1739485945547,-151.603264,0.00015013,2]
[353013781,1739485945557,-500.0,0.00015013,2]
[353013782,1739485945567,-781.27,0.00015013,2]
[353013783,1739485945577,-640.12,0.00015013,2]
[353013784,1739485945586,-571.73,0.00015013,2]
[353013785,1739485945596,-767.83,0.00015013,2]
[353013786,1739485945606,-517.58,0.00015013,2]
[353013787,1739485945618,-748.33,0.00015013,2]
[353013788,1739485945628,-1019.36,0.00015013,2]
[353013789,1739485945637,-500.0,0.00015013,2]
[353013790,1739485945647,-183.038697,0.00015013,2]
[353013791,1739485945657,-536.11,0.00015013,2]
[353013792,1739485945666,-853.88,0.00015013,2]
[353013793,1739485945675,-151.603265,0.00015013,2]
[353013794,1739485945686,-500.0,0.00015013,2]
[353013795,1739485945695,-1237.75,0.00015013,2]
[353013796,1739485945705,-500.0,0.00015013,2]
[353013797,1739485945715,-823.6,0.00015013,2]
[353013798,1739485945724,-588.86,0.00015013,2]
[353013799,1739485945734,-583.03,0.00015013,2]
[353013800,1739485945744,-839.01,0.00015013,2]
[353013801,1739485945753,-632.18,0.00015013,2]
[353013802,1739485945763,-1100.34,0.00015013,2]
[353013803,1739485945772,-500.0,0.00015013,2]
[353013804,1739485945782,-907.89,0.00015013,2]
[353013805,1739485945791,-500.0,0.00015013,2]
[353013806,1739485945801,-791.76,0.00015013,2]
[353013807,1739485945811,-500.0,0.00015013,2]
[353013808,1739485945820,-1002.52,0.00015013,2]
[353013809,1739485945829,-673.2,0.00015013,2]
[353013810,1739485945838,-864.99,0.00015013,2]
[353013811,1739485945847,-556.42,0.00015013,2]
[353013812,1739485945857,-606.37,0.00015013,2]
[353013813,1739485945867,-500.0,0.00015013,2]
[353013814,1739485945877,-500.0,0.00015013,2]
[353013815,1739485945886,-542.4,0.00015013,2]
[353013816,1739485945896,-500.0,0.00015013,2]
[353013817,1739485945906,-606.89,0.00015013,2]
[353013818,1739485945916,-551.03,0.00015013,2]
[353013819,1739485945926,-500.0,0.00015013,2]
[353013820,1739485945937,-571.58,0.00015013,2]
[353013821,1739485945947,-507.69,0.00015013,2]
[353013822,1739485945956,-500.0,0.00015013,2]
[353013823,1739485945966,-500.0,0.00015013,2]
[353013824,1739485945976,-500.0,0.00015013,2]
[353013825,1739485945986,-183.038698,0.00015013,2]
[353013826,1739485945996,-635.22373789,0.00015013,2]
[353013827,1739485946006,-500.0,0.00015013,2]
[353013828,1739485946016,-500.0,0.00015013,2]
[353013829,1739485946026,-2208.67,0.00015013,2]
[353013830,1739485946036,-543.67,0.00015013,2]
[353013831,1739485946048,-653.16,0.00015013,2]
[353013832,1739485946058,-151.603264,0.00015013,2]
[353013833,1739485946068,-823.62,0.00015013,2]
[353013834,1739485946079,-638.54,0.00015013,2]
[353013835,1739485946088,-1041.6,0.00015013,2]
[353013836,1739485946098,-500.0,0.00015013,2]
[353013837,1739485946107,-2539.19,0.00015013,2]
[353013838,1739485946119,-500.0,0.00015013,2]
[353013839,1739485946129,-3052.42,0.00015013,2]
[353013840,1739485946139,-514.61,0.00015013,2]
[353013841,1739485946149,-1525.33,0.00015013,2]
[353013842,1739485946159,-867.43,0.00015013,2]
[353013843,1739485946169,-1400.14,0.00015013,2]
[353013844,1739485946179,-917.77,0.00015013,2]
[353013845,1739485946189,-1241.27,0.00015013,2]
[353013846,1739485946199,-991.55,0.00015013,2]
[353013847,1739485946208,-566.52,0.00015013,2]
[353013848,1739485946218,-500.0,0.00015013,2]
[353013849,1739485946229,-500.0,0.00015013,2]
[353013850,1739485946239,-450.48587726,0.00015013,2]
[353013851,1739485946249,-500.0,0.00015013,2]
[353013852,1739485946258,-633.2,0.00015013,2]
[353013853,1739485946268,-717.52,0.00015013,2]
[353013854,1739485946278,-689.5,0.00015013,2]
[353013855,1739485946288,-965.58,0.00015013,2]
[353013856,1739485946299,-756.27,0.00015013,2]
[353013857,1739485946309,-687.68,0.00015013,2]
[353013858,1739485946319,-1501.09,0.00015013,2]
[353013859,1739485946329,-1669.58,0.00015013,2]
[353013860,1739485946339,-825.83,0.00015013,2]
[353013861,1739485946350,-1337.74,0.00015013,2]
[353013862,1739485946359,-1371.86,0.00015013,2]
[353013863,1739485946369,-500.0,0.00015013,2]
[353013864,1739485946379,-500.0,0.00015013,2]
[353013865,1739485946389,-1702.26,0.00015013,2]
[353013866,1739485946399,-500.0,0.00015013,2]
[353013867,1739485946409,-1754.49,0.00015013,2]
[353013868,1739485946420,-1078.61,0.00015013,2]
[353013869,1739485946430,-869.45,0.00015013,2]
[353013870,1739485946440,-1158.07,0.00015013,2]
[353013871,1739485946450,-500.0,0.00015013,2]
[353013872,1739485946460,-183.038697,0.00015013,2]
[353013873,1739485946471,-991.47,0.00015013,2]
[353013874,1739485946481,-1684.45,0.00015013,2]
[353013875,1739485946491,-526.8,0.00015013,2]
[353013876,1739485946501,-660.93,0.00015013,2]
[353013877,1739485946511,-1302.35,0.00015013,2]
[353013878,1739485946521,-854.62,0.00015013,2]
[353013879,1739485946531,-2012.26,0.00015013,2]
[353013880,1739485946541,-504.56,0.00015013,2]
[353013881,1739485946551,-151.603264,0.00015013,2]
[353013882,1739485946561,-763.9,0.00015013,2]
[353013883,1739485946571,-696.46,0.00015013,2]
[353013884,1739485946581,-835.17,0.00015013,2]
[353013885,1739485946591,-692.97,0.00015013,2]
[353013886,1739485946600,-566.32,0.00015013,2]
[353013887,1739485946610,-857.95,0.00015013,2]
[353013888,1739485946621,-2021.1,0.00015013,2]
[353013889,1739485946631,-702.16,0.00015013,2]
[353013890,1739485946641,-683.82,0.00015013,2]
[353013891,1739485946650,-1015.7,0.00015013,2]
[353013892,1739485946660,-713.38,0.00015013,2]
[353013893,1739485946671,-500.0,0.00015013,2]
[353013894,1739485946680,-1424.92,0.00015013,2]
[353013895,1739485946690,-500.0,0.00015013,2]
[353013896,1739485946700,-239.93394505,0.00015013,2]
[353013897,1739485946709,-811.86,0.00015013,2]
[353013898,1739485946719,-988.11,0.00015013,2]
[353013899,1739485946728,-1906.79,0.00015013,2]
[353013900,1739485946738,-1427.42,0.00015013,2]
[353013901,1739485946749,-524.63,0.00015013,2]
[353013902,1739485946759,-183.038697,0.00015013,2]
[353013903,1739485946769,-500.0,0.00015013,2]
[353013904,1739485946779,-881.54,0.00015013,2]
[353013905,1739485946789,-865.9,0.00015013,2]
[353013906,1739485946800,-1372.61,0.00015013,2]
[353013907,1739485946809,-758.33,0.00015013,2]
[353013908,1739485946819,-1840.97,0.00015013,2]
[353013909,1739485946830,-1636.34,0.00015013,2]
[353013910,1739485946839,-1035.24,0.00015013,2]
[353013911,1739485946849,-151.603264,0.00015013,2]
[353013912,1739485946858,-1782.82,0.00015013,2]
[353013913,1739485946868,-557.25,0.00015013,2]
[353013914,1739485946878,-687.87,0.00015013,2]
[353013915,1739485946888,-888.74,0.00015013,2]
[353013916,1739485946898,-500.0,0.00015013,2]
[353013917,1739485946909,-1131.23,0.00015013,2]
[353013918,1739485946918,-548.09,0.00015013,2]
[353013919,1739485946928,-976.11,0.00015013,2]
[353013920,1739485946937,-1065.2,0.00015013,2]
[353013921,1739485946947,-588.3090162,0.00015013,2]
[353013922,1739485946957,-1519.15,0.00015013,2]
[353013923,1739485946967,-825.94,0.00015013,2]
[353013924,1739485946977,-717.12,0.00015013,2]
[353013925,1739485946987,-718.5,0.00015013,2]
[353013926,1739485946996,-500.0,0.00015013,2]
[353013927,1739485947006,-1464.62,0.00015013,2]
[353013928,1739485947015,-1779.83,0.00015013,2]
[353013929,1739485947026,-551.0,0.00015013,2]
[353013930,1739485947038,-1813.74,0.00015013,2]
[353013931,1739485947049,-558.37,0.00015013,2]
[353013932,1739485947059,-807.26,0.00015013,2]
[353013933,1739485947069,-1306.72,0.00015013,2]
[353013934,1739485947080,-1123.76,0.00015013,2]
[353013935,1739485947091,-500.0,0.00015013,2]
[353013936,1739485947102,-844.9,0.00015013,2]
[353013937,1739485947111,-2257.68,0.00015013,2]
[353013938,1739485947123,-831.33,0.00015013,2]
[353013939,1739485947133,-923.9,0.00015013,2]
[353013940,1739485947143,-500.0,0.00015013,2]
[353013941,1739485947154,-151.603265,0.00015013,2]
[353013942,1739485947165,-1270.71,0.00015013,2]
[353013943,1739485947175,-897.69,0.00015013,2]
[353013944,1739485947186,-853.17,0.00015013,2]
[353013945,1739485947196,-840.31,0.00015013,2]
[353013946,1739485947206,-1705.94,0.00015013,2]
[353013947,1739485947216,-487.30513321,0.00015013,2]
[353013948,1739485947226,-876.71,0.00015013,2]
[353013949,1739485947236,-885.91,0.00015013,2]
[353013950,1739485947246,-500.0,0.00015013,2]
[353013951,1739485947256,-2161.09,0.00015013,2]
[353013952,1739485947266,-500.0,0.00015013,2]
[353013953,1739485947276,-3040.0,0.00015013,2]
[353013954,1739485947286,-1238.79,0.00015013,2]
[353013955,1739485947296,-1105.8,0.00015013,2]
[353013956,1739485947306,-2265.19,0.00015013,2]
[353013957,1739485947317,-1322.86,0.00015013,2]
[353013958,1739485947326,-906.34,0.00015013,2]
[353013959,1739485947336,-523.6,0.00015013,2]
[353013960,1739485947346,-646.18,0.00015013,2]
[353013961,1739485947356,-893.53,0.00015013,2]
[353013962,1739485947366,-183.038698,0.00015013,2]
[353013963,1739485947377,-970.55,0.00015013,2]
[353013964,1739485947387,-702.31,0.00015013,2]
[353013965,1739485947397,-553.1,0.00015013,2]
[353013966,1739485947407,-2482.92,0.00015013,2]
[353013967,1739485947416,-500.0,0.00015013,2]
[353013968,1739485947427,-858.18,0.00015013,2]
[353013969,1739485947438,-669.76,0.00015013,2]
[353013970,1739485947448,-710.97,0.00015013,2]
[353013971,1739485947458,-1892.5,0.00015013,2]
[353013972,1739485947469,-739.26,0.00015013,2]
[353013973,1739485947479,-151.603264,0.00015013,2]
[353013974,1739485947489,-1559.26,0.00015013,2]
[353013975,1739485947499,-1326.07,0.00015013,2]
[353013976,1739485947509,-602.38,0.00015013,2]
[353013977,1739485947518,-835.99,0.00015013,2]
[353013978,1739485947529,-1789.82,0.00015013,2]
[353013979,1739485947539,-500.0,0.00015013,2]
[353013980,1739485947549,-1318.31,0.00015013,2]
[353013981,1739485947559,-551.86,0.00015013,2]
[353013982,1739485947569,-864.67,0.00015013,2]
[353013983,1739485947579,-500.0,0.00015013,2]
[353013984,1739485947589,-1141.82,0.00015013,2]
[353013985,1739485947599,-1994.16,0.00015013,2]
[353013986,1739485947611,-812.11,0.00015013,2]
[353013987,1739485947621,-552.37722878,0.00015013,2]
[353013988,1739485947631,-859.06,0.00015013,2]
[353013989,1739485947641,-1079.19,0.00015013,2]
[353013990,1739485947652,-1941.15,0.00015013,2]
[353013991,1739485947663,-2409.32,0.00015013,2]
[353013992,1739485947673,-592.63,0.00015013,2]
[353013993,1739485947685,-900.38,0.00015013,2]
[353013994,1739485947695,-1741.64,0.00015013,2]
[353013995,1739485947706,-1010.42,0.00015013,2]
[353013996,1739485947716,-1201.88,0.00015013,2]
[353013997,1739485947726,-730.65,0.00015013,2]
[353013998,1739485947736,-2964.55,0.00015013,2]
[353013999,1739485947746,-645.62,0.00015013,2]
[353014000,1739485947757,-1693.27,0.00015013,2]
[353014001,1739485947767,-765.27,0.00015013,2]
[353014002,1739485947778,-151.603265,0.00015013,2]
[353014003,1739485947788,-1023.18,0.00015013,2]
[353014004,1739485947799,-1983.35,0.00015013,2]
[353014005,1739485947809,-1199.21,0.00015013,2]
[353014006,1739485947819,-1991.14,0.00015013,2]
[353014007,1739485947829,-533.09,0.00015013,2]
[353014008,1739485947840,-4281.75,0.00015013,2]
[353014009,1739485947850,-500.0,0.00015013,2]
[353014010,1739485947860,-2700.69,0.00015013,2]
[353014011,1739485947870,-1072.56,0.00015013,2]
[353014012,1739485947881,-2181.51,0.00015013,2]
[353014013,1739485947891,-2105.12,0.00015013,2]
[353014014,1739485947902,-2362.29,0.00015013,2]
[353014015,1739485947912,-797.65,0.00015013,2]
[353014016,1739485947924,-1372.43,0.00015013,2]
[353014017,1739485947935,-500.0,0.00015013,2]
[353014018,1739485947945,-2270.27,0.00015013,2]
[353014019,1739485947955,-701.26,0.00015013,2]
[353014020,1739485947965,-500.0,0.00015013,2]
[353014021,1739485947975,-1635.6,0.00015013,2]
[353014022,1739485947985,-1210.46,0.00015013,2]
[353014023,1739485947995,-1551.99,0.00015013,2]
[353014024,1739485948005,-4033.58,0.00015013,2]
[353014025,1739485948016,-2766.93,0.00015013,2]
[353014026,1739485948026,-2765.04,0.00015013,2]
[353014027,1739485948039,-183.038697,0.00015013,2]
[353014028,1739485948050,-660.75,0.00015013,2]
[353014029,1739485948060,-2103.7,0.00015013,2]
[353014030,1739485948071,-924.48,0.00015013,2]
[353014031,1739485948081,-794.33,0.00015013,2]
[353014032,1739485948091,-1140.21,0.00015013,2]
[353014033,1739485948100,-500.0,0.00015013,2]
[353014034,1739485948112,-1374.92,0.00015013,2]
[353014035,1739485948123,-1394.91,0.00015013,2]
[353014036,1739485948133,-2230.12,0.00015013,2]
[353014037,1739485948143,-500.0,0.00015013,2]
[353014038,1739485948153,-151.603265,0.00015013,2]
[353014039,1739485948162,-878.31,0.00015013,2]
[353014040,1739485948173,-1071.07,0.00015013,2]